bitfinex/quotes_BTCUSD_20241120
["timestamp","ask_amount","ask_price","bid_price","bid_amount"]
[1732128542368,0.05692312,93360.0,93357.0,0.042846]
[1732128542570,0.18827556,93364.0,93360.0,0.042844]
[1732128542784,0.347588,93363.0,93352.0,0.042848]
[1732128542990,0.40248856,93365.0,93359.0,0.042845]
[1732128542991,0.147588,93362.0,93359.0,0.042845]
[1732128543229,0.147588,93362.0,93351.0,0.042848]
[1732128543230,0.18827556,93365.0,93364.0,0.042843]
[1732128543424,0.0017106,93371.0,93368.0,0.042841]
[1732128543681,0.0004,93379.0,93376.0,0.042837]
[1732128543889,0.0004,93379.0,93378.0,0.042836]
[1732128544127,0.107084,93385.0,93377.0,0.053546]
[1732128544299,0.107084,93385.0,93352.0,0.14996312]
[1732128544300,0.10711512,93384.0,93378.0,0.053545]
[1732128544519,0.107088,93381.0,93375.0,0.053547]
[1732128544743,0.32128412,93384.0,93375.0,0.053547]
[1732128544744,0.214169,93384.0,93375.0,0.053547]
[1732128544919,0.214157,93389.0,93375.0,0.053547]
[1732128545155,0.0246159,93388.0,93357.0,0.1]
[1732128545362,0.0246159,93388.0,93360.0,0.053556]
[1732128545566,0.01,93385.0,93372.0,0.053548]
[1732128545791,0.10709,93379.0,93372.0,0.053548]
[1732128545995,0.3440254,93390.0,93365.0,0.01]
[1732128546202,0.22192362,93390.0,93368.0,0.053551]
[1732128546417,0.22192362,93390.0,93380.0,0.053544]
[1732128546624,0.28398551,93391.0,93385.0,0.053541]
[1732128546829,0.224147,93394.0,93383.0,0.053542]
[1732128547065,0.214148,93393.0,93379.0,0.053544]
[1732128547282,0.01,93394.0,93377.0,0.053545]
[1732128547483,0.09421315,93388.0,93377.0,0.053545]
[1732128547686,0.09421315,93388.0,93371.0,0.10711512]
[1732128547933,0.107083,93386.0,93378.0,0.053545]
[1732128548099,0.21416,93388.0,93380.0,0.053544]
[1732128548311,0.21416,93388.0,93378.0,0.053545]
[1732128548312,0.214154,93391.0,93379.0,0.053545]
[1732128548518,0.15131756,93394.0,93367.0,0.053551]
[1732128548519,0.023,93380.0,93367.0,0.053551]
[1732128548728,0.107091,93379.0,93373.0,0.053548]
[1732128548942,0.023,93380.0,93354.0,0.01]
[1732128549164,0.023,93380.0,93379.0,0.053545]
[1732128549401,0.023,93385.0,93384.0,0.053542]
[1732128549661,0.64131756,93398.0,93360.0,0.1]
[1732128549662,0.02918835,93397.0,93374.0,0.01]
[1732128549846,0.43605562,93401.0,93368.0,0.01]
[1732128549847,0.28398551,93393.0,93368.0,0.01]
[1732128550105,0.28398551,93393.0,93370.0,0.1]
[1732128550303,0.28398551,93393.0,93357.0,0.04433078]
[1732128550304,0.107084,93385.0,93378.0,0.053545]
[1732128550588,0.28398551,93393.0,93377.0,0.053546]
[1732128550589,0.28398551,93383.0,93377.0,0.053546]
[1732128550836,0.28398551,93383.0,93363.0,0.10711512]
[1732128550837,0.39107151,93383.0,93376.0,0.053546]
[1732128551092,0.10709,93380.0,93375.0,0.053547]
[1732128551283,0.107087,93382.0,93373.0,0.053548]
[1732128551735,0.214153,93391.0,93353.0,0.1]
[1732128551736,0.214138,93398.0,93374.0,0.10711512]
[1732128551860,0.14131756,93400.0,93394.0,0.053536]
[1732128552033,0.01824362,93398.0,93397.0,0.053534]
[1732128552236,0.14131756,93406.0,93398.0,0.053534]
[1732128552508,0.107056,93409.0,93398.0,0.053534]
[1732128552765,0.23235362,93410.0,93398.0,0.053534]
[1732128553051,0.01824362,93413.0,93398.0,0.053534]
[1732128553187,0.22192362,93415.0,93398.0,0.053534]
[1732128553188,0.107059,93406.0,93398.0,0.053534]
[1732128553448,0.321172,93408.0,93398.0,0.053534]
[1732128553674,0.01824362,93414.0,93404.0,0.05353]
[1732128553905,0.24016724,93415.0,93409.0,0.053527]
[1732128554161,0.22192362,93415.0,93409.0,0.053527]
[1732128554500,0.22192362,93415.0,93374.0,0.153547]
[1732128554501,0.01,93427.0,93395.0,0.01]
[1732128554613,0.01,93427.0,93387.0,0.1]
[1732128554614,0.01823056,93420.0,93405.0,0.10711512]
[1732128554880,0.01823056,93420.0,93387.0,0.1]
[1732128554881,0.10704,93423.0,93397.0,0.064241]
[1732128555059,0.01823056,93423.0,93398.0,0.10711512]
[1732128555288,0.01,93428.0,93414.0,0.064229]
[1732128555541,0.01823056,93430.0,93399.0,0.06424]
[1732128555542,0.28398551,93424.0,93399.0,0.06424]
[1732128555757,0.29398551,93408.0,93377.0,0.01]
[1732128556045,0.29398551,93408.0,93389.0,0.064247]
[1732128556046,0.107068,93399.0,93389.0,0.064247]
[1732128556266,0.22192362,93407.0,93389.0,0.064246]
[1732128556523,0.22192362,93407.0,93361.0,0.0782]
[1732128556524,0.023,93407.0,93376.0,0.01]
[1732128556742,0.214125,93403.0,93381.0,0.10711512]
[1732128556994,0.023,93402.0,93394.0,0.064243]
[1732128557171,0.023,93402.0,93395.0,0.064242]
[1732128557417,0.023,93402.0,93381.0,0.064252]
[1732128557418,0.28398551,93397.0,93381.0,0.064252]
[1732128557585,0.023,93396.0,93391.0,0.064245]
[1732128557794,0.107072,93395.0,93381.0,0.064252]
[1732128558026,0.01,93409.0,93382.0,0.11711512]
[1732128558217,0.023,93417.0,93408.0,0.064234]
[1732128558431,0.023,93419.0,93411.0,0.064231]
[1732128558649,0.0017078,93420.0,93398.0,0.064241]
[1732128558865,0.0017078,93420.0,93419.0,0.064226]
[1732128559089,0.0017078,93420.0,93414.0,0.06423]
[1732128559304,0.0017078,93420.0,93415.0,0.064229]
[1732128559515,0.0017078,93420.0,93392.0,0.064245]
[1732128559724,0.214089,93419.0,93407.0,0.064234]
[1732128559953,0.214089,93419.0,93379.0,0.01]
[1732128559954,0.5,93414.0,93379.0,0.01]
[1732128560198,0.214107,93411.0,93382.0,0.1]
[1732128560449,0.32903874,93413.0,93383.0,0.10711512]
[1732128560643,0.023,93401.0,93393.0,0.064244]
[1732128560851,0.023,93401.0,93396.0,0.064242]
[1732128561070,0.023,93403.0,93396.0,0.064242]
[1732128561286,0.023,93403.0,93364.0,0.01]
[1732128561498,0.023,93385.0,93382.0,0.064252]
[1732128561700,0.023,93389.0,93370.0,0.01]
[1732128561911,0.023,93390.0,93384.0,0.06425]
[1732128562121,0.214128,93402.0,93349.0,0.0773]
[1732128562122,0.107068,93399.0,93390.0,0.064246]
[1732128562364,0.22192362,93406.0,93391.0,0.10711512]
[1732128562593,0.28398551,93415.0,93406.0,0.064235]
[1732128562594,0.1,93411.0,93406.0,0.064235]
[1732128562777,0.214095,93417.0,93392.0,0.064245]
[1732128562778,0.22192362,93419.0,93411.0,0.064231]
[1732128562988,0.107049,93415.0,93410.0,0.064232]
[1732128563268,0.0017078,93420.0,93403.0,0.064237]
[1732128563269,0.0017078,93420.0,93415.0,0.064229]
[1732128563438,0.0017078,93420.0,93396.0,0.01]
[1732128563439,0.0017078,93420.0,93416.0,0.064228]
[1732128563797,0.0017078,93420.0,93413.0,0.06423]
[1732128563934,0.224078,93424.0,93417.0,0.064227]
[1732128564163,0.10704,93423.0,93418.0,0.064227]
[1732128564379,0.107034,93428.0,93422.0,0.064224]
[1732128564575,0.39102251,93426.0,93421.0,0.064224]
[1732128565004,0.39102251,93426.0,93421.0,0.128449]
[1732128565276,0.0493,93436.0,93408.0,0.064234]
[1732128565485,0.0493,93436.0,93411.0,0.01]
[1732128565486,0.01,93436.0,93411.0,0.01]
[1732128565679,0.107027,93435.0,93429.0,0.064219]
[1732128565890,0.107026,93435.0,93429.0,0.064219]
[1732128566342,0.107027,93435.0,93424.0,0.064223]
[1732128566552,0.214045,93439.0,93428.0,0.06422]
[1732128566758,0.042805,93440.0,93426.0,0.064221]
[1732128567216,0.042805,93440.0,93412.0,0.10711512]
[1732128567221,0.001708,93447.0,93435.0,0.064215]
[1732128567222,0.107018,93442.0,93435.0,0.064215]
[1732128567461,0.001708,93447.0,93413.0,0.18134512]
[1732128567462,0.001708,93447.0,93420.0,0.01]
[1732128567627,0.107014,93445.0,93438.0,0.064213]
[1732128567853,0.10702,93440.0,93434.0,0.064216]
[1732128568059,0.01798024,93439.0,93434.0,0.064216]
[1732128568265,0.01798024,93438.0,93437.0,0.064214]
[1732128568564,0.01798024,93438.0,93436.0,0.064214]
[1732128568758,0.0488895,93438.0,93410.0,0.064232]
[1732128568960,0.107029,93433.0,93411.0,0.128464]
[1732128569186,0.24280369,93442.0,93410.0,0.10711512]
[1732128569187,0.01798024,93432.0,93419.0,0.064226]
[1732128569377,0.01798024,93432.0,93394.0,0.01]
[1732128569378,0.214081,93423.0,93404.0,0.01]
[1732128569592,0.01798024,93422.0,93399.0,0.01]
[1732128569799,0.33910871,93421.0,93414.0,0.064229]
[1732128570061,0.12502571,93420.0,93415.0,0.064229]
[1732128570281,0.01798211,93419.0,93402.0,0.0008535]
[1732128570462,0.24283738,93429.0,93402.0,0.0008535]
[1732128570463,0.12509723,93418.0,93402.0,0.0008535]
[1732128570891,0.01798211,93418.0,93417.0,0.064228]
[1732128570900,0.01798211,93418.0,93404.0,0.074237]
[1732128570901,0.02876776,93425.0,93424.0,0.064223]
[1732128571288,0.04675243,93425.0,93424.0,0.064223]
[1732128572293,0.04675243,93425.0,93421.0,0.064225]
[1732128572513,0.02876776,93425.0,93424.0,0.064223]
[1732128572716,0.02876776,93425.0,93405.0,0.01]
[1732128572717,0.01799656,93424.0,93423.0,0.064223]
[1732128572846,0.01799656,93424.0,93412.0,0.01]
[1732128572847,0.26085319,93424.0,93414.0,0.06423]
[1732128573052,0.26085319,93424.0,93402.0,0.0008535]
[1732128573053,0.107055,93410.0,93402.0,0.0008535]
[1732128573257,0.04677619,93409.0,93407.0,0.064234]
[1732128573611,0.01799807,93408.0,93402.0,0.0008535]
[1732128573717,0.02879692,93421.0,93403.0,0.064237]
[1732128573884,0.01799698,93407.0,93406.0,0.064235]
[1732128574091,0.04678565,93407.0,93402.0,0.0008535]
[1732128574293,0.04679937,93406.0,93404.0,0.074942]
[1732128574542,0.107048,93416.0,93409.0,0.074938]
[1732128574736,0.04679215,93415.0,93414.0,0.074935]
[1732128576719,0.001707,93435.0,93414.0,0.074935]
[1732128576720,0.001707,93435.0,93414.0,0.30205012]
[1732128576882,0.001707,93435.0,93434.0,0.074919]
[1732128577629,0.001707,93435.0,93422.0,0.01]
[1732128577630,0.001707,93435.0,93416.0,0.1785]
[1732128577813,0.001707,93435.0,93391.0,0.01]
[1732128577814,0.001707,93435.0,93410.0,0.01]
[1732128578055,0.107045,93418.0,93399.0,0.0803]
[1732128578274,0.107037,93426.0,93402.0,0.10796862]
[1732128578474,0.214059,93432.0,93422.0,0.074928]
[1732128578703,0.214064,93430.0,93422.0,0.074928]
[1732128578950,0.107034,93428.0,93423.0,0.074927]
[1732128579227,0.107036,93426.0,93422.0,0.074928]
[1732128579456,0.107036,93426.0,93402.0,0.11796862]
[1732128579457,0.214066,93429.0,93402.0,0.11796862]
[1732128579693,0.107035,93427.0,93422.0,0.074928]
[1732128579942,0.09388348,93428.0,93421.0,0.074929]
[1732128580232,0.107035,93427.0,93422.0,0.074928]
[1732128580773,0.18947396,93435.0,93425.0,0.074926]
[1732128580774,0.09388348,93426.0,93425.0,0.074926]
[1732128580998,0.14082522,93434.0,93431.0,0.074921]
[1732128581220,0.095849,93435.0,93432.0,0.07492]
[1732128581701,0.14082522,93434.0,93432.0,0.07492]
[1732128581979,0.14082522,93434.0,93411.0,0.01]
[1732128581980,0.29000799,93434.0,93411.0,0.01]
[1732128582210,0.09422008,93426.0,93424.0,0.074927]
[1732128582498,0.001707,93435.0,93412.0,0.10711512]
[1732128582499,0.14133012,93431.0,93429.0,0.074923]
[1732128582774,0.14133012,93431.0,93430.0,0.074922]
[1732128583010,0.14303712,93435.0,93432.0,0.07492]
[1732128583298,0.001707,93435.0,93434.0,0.074919]
[1732128583931,0.001707,93435.0,93433.0,0.074919]
[1732128584169,0.001707,93435.0,93434.0,0.074919]
[1732128584906,0.001707,93435.0,93434.0,0.084919]
[1732128585385,0.001707,93435.0,93434.0,0.074919]
[1732128585921,0.001707,93435.0,93434.0,0.084919]
[1732128586373,0.001707,93435.0,93434.0,0.074919]
[1732128586588,0.001707,93435.0,93434.0,0.084919]
[1732128586836,0.02972567,93435.0,93434.0,0.084919]
[1732128587098,0.02972567,93435.0,93434.0,0.074919]
[1732128587643,0.02972567,93435.0,93418.0,0.11]
[1732128588005,0.02972567,93435.0,93416.0,0.1]
[1732128588006,0.107041,93422.0,93416.0,0.074933]
[1732128588007,0.12233197,93434.0,93409.0,0.074939]
[1732128588008,0.0943133,93426.0,93409.0,0.074939]
[1732128588250,0.0943133,93426.0,93402.0,0.0108535]
[1732128588251,0.107046,93418.0,93412.0,0.074936]
[1732128588506,0.02801867,93417.0,93413.0,0.074935]
[1732128588877,0.107051,93413.0,93407.0,0.0757932]
[1732128589137,0.214098,93415.0,93407.0,0.0757932]
[1732128589138,0.04552017,93412.0,93407.0,0.0757932]
[1732128589464,0.42502557,93418.0,93407.0,0.0757932]
[1732128589465,0.02800175,93411.0,93407.0,0.0008532]
[1732128589729,0.107057,93408.0,93407.0,0.0008532]
[1732128590157,0.01749782,93408.0,93407.0,0.0008532]
[1732128590459,0.04549434,93408.0,93407.0,0.0008532]
[1732128590718,0.44831416,93408.0,93407.0,0.0008532]
[1732128590971,0.44831416,93408.0,93402.0,0.0008535]
[1732128590972,0.107062,93403.0,93402.0,0.0008535]
[1732128591205,0.5800716,93403.0,93402.0,0.0008535]
[1732128591435,0.60806812,93403.0,93402.0,0.0008535]
[1732128591688,0.84403602,93403.0,93402.0,0.0008535]
[1732128592158,0.60806812,93403.0,93402.0,0.0008535]
[1732128592438,0.88743758,93403.0,93402.0,0.0008535]
[1732128592660,0.76059155,93403.0,93402.0,0.0008535]
[1732128592918,0.651529,93403.0,93402.0,0.0008535]
[1732128593181,0.88743758,93403.0,93402.0,0.0008535]
[1732128593418,0.58255759,93403.0,93402.0,0.0757975]
[1732128593650,0.04549434,93403.0,93402.0,0.0757975]
[1732128593918,0.18705947,93403.0,93402.0,0.0757975]
[1732128594151,0.04549434,93403.0,93402.0,0.0757975]
[1732128595597,0.04549434,93403.0,93402.0,0.20291262]
[1732128596080,0.04549434,93403.0,93402.0,0.30291262]
[1732128596334,0.01749782,93403.0,93402.0,0.30291262]
[1732128598817,0.02799652,93416.0,93415.0,0.074934]
[1732128599323,0.04548473,93416.0,93415.0,0.074934]
[1732128599827,0.01748821,93416.0,93415.0,0.074934]
[1732128600334,0.04548473,93416.0,93415.0,0.074934]
[1732128600562,0.01748821,93416.0,93415.0,0.30204912]
[1732128600806,0.005438,93434.0,93431.0,0.084921]
[1732128600807,0.02799652,93432.0,93431.0,0.084921]
[1732128601038,0.005438,93434.0,93431.0,0.084921]
[1732128601039,0.005438,93434.0,93433.0,0.074919]
[1732128601525,0.05091051,93434.0,93433.0,0.074919]
[1732128601746,0.02292743,93434.0,93433.0,0.074919]
[1732128601991,0.02292743,93434.0,93422.0,0.1]
[1732128601992,0.26496551,93434.0,93422.0,0.074928]
[1732128602211,0.107047,93417.0,93410.0,0.074938]
[1732128602434,0.09448518,93428.0,93400.0,0.1]
[1732128602435,0.04547251,93416.0,93415.0,0.074933]
[1732128602660,0.01748943,93416.0,93415.0,0.30204812]
[1732128602885,0.01748943,93416.0,93415.0,0.074933]
[1732128603178,0.01748943,93416.0,93410.0,0.149875]
[1732128603354,0.01748943,93416.0,93399.0,0.0795]
[1732128603355,0.09448518,93418.0,93408.0,0.01]
[1732128603571,0.214096,93416.0,93407.0,0.07494]
[1732128603789,0.0174773,93415.0,93411.0,0.074937]
[1732128604011,0.04546038,93415.0,93412.0,0.074936]
[1732128604223,0.09448518,93417.0,93399.0,0.074946]
[1732128604224,0.04546038,93414.0,93399.0,0.074946]
[1732128604480,0.0174773,93413.0,93411.0,0.074937]
[1732128604695,0.0174773,93413.0,93412.0,0.074936]
[1732128604910,0.14172778,93418.0,93410.0,0.074937]
[1732128604911,0.09448518,93417.0,93415.0,0.074933]
[1732128605141,0.09444281,93417.0,93416.0,0.074933]
[1732128605355,0.01747196,93416.0,93399.0,0.01]
[1732128605575,0.107062,93403.0,93395.0,0.07495]
[1732128605798,0.107062,93403.0,93391.0,0.01]
[1732128605799,0.01747196,93403.0,93398.0,0.074947]
[1732128606029,0.12453396,93403.0,93396.0,0.074949]
[1732128606362,0.12453396,93403.0,93386.0,0.074957]
[1732128606363,0.19238238,93403.0,93386.0,0.074957]
[1732128606482,0.19238238,93403.0,93365.0,0.074974]
[1732128606483,0.37078024,93403.0,93383.0,0.074959]
[1732128606698,0.107081,93388.0,93379.0,0.074962]
[1732128606913,0.01747196,93387.0,93385.0,0.074957]
[1732128607132,0.11117602,93403.0,93385.0,0.074957]
[1732128607133,0.107066,93400.0,93392.0,0.074952]
[1732128607358,0.652525,93399.0,93382.0,0.07496]
[1732128607699,0.10708,93388.0,93381.0,0.074961]
[1732128607842,0.107078,93390.0,93385.0,0.074958]
[1732128607984,0.01745474,93389.0,93379.0,0.074962]
[1732128608224,0.04540988,93388.0,93366.0,0.01]
[1732128608465,0.28328211,93390.0,93382.0,0.01]
[1732128608466,0.04540988,93387.0,93382.0,0.01]
[1732128608621,0.04540988,93387.0,93386.0,0.074957]
[1732128608843,0.01335925,93398.0,93386.0,0.074957]
[1732128608844,0.09439773,93392.0,93391.0,0.074953]
[1732128609052,0.14159589,93396.0,93392.0,0.074952]
[1732128609053,0.09439773,93396.0,93392.0,0.074952]
[1732128609264,0.09439773,93397.0,93396.0,0.074949]
[1732128609498,0.01744761,93397.0,93396.0,0.074949]
[1732128609915,0.15901908,93397.0,93396.0,0.074949]
[1732128610173,0.01744742,93397.0,93396.0,0.074949]
[1732128610847,0.80921007,93412.0,93401.0,0.074945]
[1732128610848,0.09439206,93404.0,93401.0,0.074945]
[1732128611041,0.04535372,93403.0,93395.0,0.07495]
[1732128611248,0.02791001,93402.0,93401.0,0.074945]
[1732128611495,0.32863583,93402.0,93392.0,0.074952]
[1732128611711,0.09434602,93398.0,93385.0,0.01]
[1732128611929,0.18692519,93401.0,93372.0,0.10711512]
[1732128611930,0.13969974,93397.0,93383.0,0.01]
[1732128612189,0.04535372,93396.0,93394.0,0.074951]
[1732128612435,0.04535372,93396.0,93395.0,0.20206512]
[1732128612629,0.02792256,93413.0,93411.0,0.074937]
[1732128612886,0.02792256,93419.0,93418.0,0.074932]
[1732128613107,0.02792762,93426.0,93421.0,0.074929]
[1732128613338,0.02792762,93426.0,93397.0,0.01]
[1732128613339,0.001707,93429.0,93428.0,0.084924]
[1732128613547,0.04709141,93429.0,93428.0,0.084924]
[1732128613754,0.04709141,93429.0,93428.0,0.074924]
[1732128614177,0.04709141,93429.0,93428.0,0.084924]
[1732128614394,0.04709141,93429.0,93428.0,0.074924]
[1732128614735,0.04709141,93429.0,93428.0,0.084924]
[1732128614736,0.04709843,93429.0,93428.0,0.084924]
[1732128615278,0.04709843,93429.0,93428.0,0.074924]
[1732128615734,0.04709843,93429.0,93420.0,0.074929]
[1732128615940,0.28328211,93421.0,93413.0,0.074935]
[1732128616172,0.05874965,93420.0,93415.0,0.074934]
[1732128616388,0.35563947,93428.0,93408.0,0.01]
[1732128616389,0.05874965,93419.0,93418.0,0.074932]
[1732128616879,0.05874965,93419.0,93409.0,0.01]
[1732128616880,0.05874965,93419.0,93410.0,0.074938]
[1732128617096,0.08668858,93418.0,93417.0,0.074932]
[1732128617327,0.04539788,93418.0,93407.0,0.07494]
[1732128617578,0.01336007,93419.0,93415.0,0.074933]
[1732128617833,0.04539566,93417.0,93415.0,0.074933]
[1732128618037,0.01745987,93416.0,93415.0,0.074933]
[1732128618254,0.04539566,93416.0,93415.0,0.074933]
[1732128618473,0.04539566,93416.0,93411.0,0.074937]
[1732128618690,0.04129723,93421.0,93411.0,0.074937]
[1732128618691,0.13562743,93421.0,93417.0,0.074932]
[1732128618915,0.107046,93418.0,93413.0,0.074935]
[1732128619141,0.04540107,93417.0,93413.0,0.074935]
[1732128619360,0.04540107,93416.0,93409.0,0.01]
[1732128619573,0.04540107,93415.0,93409.0,0.01]
[1732128620023,0.107058,93407.0,93396.0,0.01]
[1732128620024,0.28328211,93412.0,93396.0,0.01]
[1732128620025,0.22932136,93411.0,93406.0,0.07494]
[1732128620237,0.22932136,93411.0,93399.0,0.074947]
[1732128620238,0.09436427,93409.0,93399.0,0.074947]
[1732128620558,0.09436427,93411.0,93400.0,0.01]
[1732128620673,0.28328211,93412.0,93411.0,0.074937]
[1732128620674,0.09436427,93412.0,93411.0,0.074937]
[1732128620880,0.32277225,93412.0,93411.0,0.074937]
[1732128621098,0.22840798,93412.0,93411.0,0.074937]
[1732128621952,0.04541087,93412.0,93411.0,0.074937]
[1732128622377,0.04541087,93412.0,93411.0,0.20205212]
[1732128623444,0.01746562,93412.0,93411.0,0.20205212]
[1732128623722,0.001707,93429.0,93428.0,0.094924]
[1732128623899,0.001707,93429.0,93428.0,0.20203912]
[1732128624123,0.04718769,93429.0,93428.0,0.20203912]
[1732128624603,0.04718769,93429.0,93428.0,0.084924]
[1732128624814,0.04718769,93429.0,93428.0,0.20203912]
[1732128625935,0.04718769,93429.0,93428.0,0.084924]
[1732128626719,0.04718769,93429.0,93428.0,0.074924]
[1732128626890,0.001707,93429.0,93428.0,0.074924]
[1732128627216,0.01919466,93429.0,93428.0,0.074924]
[1732128627288,0.02968819,93429.0,93428.0,0.074924]
[1732128627492,0.04717643,93429.0,93428.0,0.074924]
[1732128628131,0.04717643,93429.0,93425.0,0.074925]
[1732128628350,0.18299711,93426.0,93425.0,0.074926]
[1732128628561,0.18299711,93426.0,93412.0,0.074936]
[1732128628562,0.04546943,93426.0,93422.0,0.01]
[1732128628770,0.04546943,93425.0,93423.0,0.074927]
[1732128628982,0.12039156,93428.0,93423.0,0.074927]
[1732128628983,0.04546943,93424.0,93423.0,0.074927]
[1732128629201,0.04546943,93424.0,93423.0,0.084927]
[1732128629408,0.04546943,93424.0,93423.0,0.20204212]
[1732128629834,0.001707,93429.0,93428.0,0.084924]
[1732128630099,0.04716109,93429.0,93428.0,0.19203912]
[1732128630305,0.04716109,93429.0,93428.0,0.20203912]
[1732128631352,0.01918934,93429.0,93428.0,0.28463912]
[1732128634424,0.001707,93429.0,93428.0,0.38660713]
[1732128637166,0.001707,93429.0,93428.0,0.30400713]
[1732128638461,0.01916651,93429.0,93428.0,0.30400713]
[1732128638892,0.01916651,93429.0,93428.0,0.31400713]
[1732128639347,0.001707,93429.0,93428.0,0.31400713]
[1732128640009,0.0191667,93429.0,93428.0,0.30400713]
[1732128640235,0.001707,93429.0,93428.0,0.30400713]
[1732128640454,0.01916725,93429.0,93428.0,0.30400713]
[1732128642854,0.01916725,93429.0,93428.0,0.09689201]
[1732128643079,0.06046941,93429.0,93428.0,0.07689201]
[1732128643748,0.07427831,93429.0,93428.0,0.00196801]
[1732128643986,0.06046941,93429.0,93418.0,0.11883679]
[1732128644216,0.10874,93429.0,93428.0,0.0014822]
[1732128644447,0.10874,93429.0,93418.0,0.074931]
[1732128644448,0.06046096,93429.0,93423.0,0.074927]
[1732128644670,0.06046096,93429.0,93425.0,0.074926]
[1732128644671,0.05875396,93428.0,93425.0,0.074926]
[1732128644892,0.05875396,93427.0,93418.0,0.01]
[1732128645110,0.001707,93429.0,93424.0,0.00143494]
[1732128645111,0.16578996,93426.0,93424.0,0.00143494]
[1732128645321,0.05875396,93425.0,93421.0,0.074929]
[1732128645532,0.0279405,93422.0,93418.0,0.01]
[1732128645788,0.0279405,93422.0,93388.0,0.01]
[1732128645789,0.08669446,93421.0,93417.0,0.01]
[1732128646004,0.05875396,93420.0,93418.0,0.01]
[1732128646240,0.02793565,93420.0,93418.0,0.01]
[1732128646515,0.0279405,93421.0,93411.0,0.01]
[1732128646516,0.04540214,93419.0,93411.0,0.01]
[1732128646779,0.107048,93416.0,93411.0,0.01]
[1732128647060,0.107048,93416.0,93407.0,0.0008551]
[1732128647061,0.18276113,93414.0,93407.0,0.0008551]
[1732128647298,0.107057,93408.0,93407.0,0.0008551]
[1732128647536,0.1658188,93408.0,93407.0,0.0008551]
[1732128648291,0.21030058,93408.0,93407.0,0.0008551]
[1732128648559,0.31936313,93408.0,93407.0,0.0008551]
[1732128648794,0.21030058,93408.0,93407.0,0.0008551]
[1732128649308,0.15153878,93408.0,93407.0,0.0008551]
[1732128649617,0.21029407,93408.0,93407.0,0.0008551]
[1732128649809,0.05875529,93408.0,93407.0,0.0757951]
[1732128650083,0.04539293,93408.0,93407.0,0.20291022]
[1732128650368,0.04539293,93408.0,93407.0,0.30291022]
[1732128650624,0.01745882,93408.0,93407.0,0.30291022]
[1732128651645,0.02792925,93438.0,93433.0,0.01]
[1732128651908,0.14316789,93447.0,93433.0,0.01]
[1732128651909,0.03339361,93434.0,93433.0,0.084919]
[1732128652186,0.03339361,93434.0,93433.0,0.074919]
[1732128652415,0.03339361,93434.0,93433.0,0.07635987]
[1732128654322,0.03339361,93434.0,93433.0,0.08635987]
[1732128654831,0.14042061,93434.0,93433.0,0.00144087]
[1732128655107,0.21615474,93434.0,93433.0,0.00144087]
[1732128655340,0.21615474,93434.0,93431.0,0.074218]
[1732128655341,0.03339361,93434.0,93431.0,0.01]
[1732128655575,0.03339865,93434.0,93433.0,0.064217]
[1732128655808,0.06136355,93434.0,93433.0,0.064217]
[1732128656069,0.0334029,93434.0,93433.0,0.06566162]
[1732128656314,0.0334029,93434.0,93433.0,0.00144462]
[1732128656585,0.45528736,93434.0,93433.0,0.00144462]
[1732128656846,0.107049,93415.0,93409.0,0.064233]
[1732128657088,0.107049,93415.0,93407.0,0.0108551]
[1732128657089,0.107056,93409.0,93407.0,0.0008551]
[1732128657357,0.15922889,93408.0,93407.0,0.0008551]
[1732128657561,0.24213702,93408.0,93407.0,0.0008551]
[1732128657804,0.24213702,93408.0,93402.0,0.0008535]
[1732128657805,0.607062,93403.0,93402.0,0.0008535]
[1732128658064,0.107099,93372.0,93364.0,0.064264]
[1732128658339,0.1071,93370.0,93369.0,0.2128443]
[1732128658655,0.1350649,93370.0,93369.0,0.2128443]
[1732128658852,0.1350649,93370.0,93355.0,0.06427]
[1732128658853,0.0279649,93370.0,93367.0,0.01]
[1732128659106,0.18276113,93374.0,93368.0,0.064261]
[1732128659344,0.02791272,93369.0,93361.0,0.01]
[1732128659580,0.01336492,93368.0,93367.0,0.064262]
[1732128659820,0.04125,93368.0,93367.0,0.074262]
[1732128660078,0.04125,93368.0,93367.0,0.064262]
[1732128660329,0.04125,93368.0,93367.0,0.01]
[1732128660555,0.04125,93368.0,93364.0,0.0008549]
[1732128660556,0.214208,93367.0,93364.0,0.0008549]
[1732128660798,0.06912863,93366.0,93358.0,0.064268]
[1732128661041,0.107122,93351.0,93350.0,0.265]
[1732128661267,0.107122,93351.0,93329.0,0.0008539]
[1732128661268,0.10714,93335.0,93329.0,0.0008539]
[1732128661546,0.21063521,93335.0,93329.0,0.0008539]
[1732128661789,0.31777521,93335.0,93329.0,0.0008539]
[1732128662750,0.47303984,93335.0,93329.0,0.0008539]
[1732128663029,0.48640952,93335.0,93329.0,0.0008539]
[1732128663263,0.107165,93314.0,93311.0,0.0004]
[1732128663503,0.107165,93314.0,93302.0,0.0008551]
[1732128663504,0.607177,93303.0,93302.0,0.0008551]
[1732128663785,0.92068467,93303.0,93302.0,0.0008551]
[1732128664022,1.29984645,93303.0,93302.0,0.0008551]
[1732128664255,1.51277915,93303.0,93302.0,0.0008551]
[1732128664510,0.107181,93300.0,93299.0,0.00511879]
[1732128664752,0.38246536,93300.0,93299.0,0.00511879]
[1732128665214,0.25530337,93300.0,93299.0,0.00511879]
[1732128665216,0.27736319,93300.0,93299.0,0.00511879]
[1732128665448,0.78995113,93292.0,93280.0,0.0018]
[1732128665689,0.607202,93281.0,93280.0,0.0018]
[1732128665938,1.08218943,93281.0,93280.0,0.0018]
[1732128666406,1.04867916,93281.0,93280.0,0.0018]
[1732128666632,0.9553505,93281.0,93280.0,0.0018]
[1732128666868,1.05666709,93281.0,93280.0,0.0018]
[1732128667345,0.94946509,93281.0,93280.0,0.0018]
[1732128667565,0.05827225,93281.0,93280.0,0.066122]
[1732128667802,0.05827225,93281.0,93280.0,0.06740653]
[1732128668063,0.04489439,93281.0,93280.0,0.17272197]
[1732128668273,0.01726707,93281.0,93280.0,0.27272197]
[1732128668507,0.01726707,93281.0,93280.0,0.31576569]
[1732128668737,0.04489439,93281.0,93280.0,0.31576569]
[1732128669197,0.04489439,93281.0,93280.0,0.06560685]